[Event "*** Titled Tuesday Blitz"]
[Site "Chess.com"]
[Date "2020.01.07"]
[Round "3"]
[White "Chimpinha"]
[Black "fish7728"]
[Result "0-1"]
[WhiteElo "2387"]
[BlackElo "2138"]
[TimeControl "180+2"]
[EndTime "13:41:42 PST"]
[Termination "fish7728 won by resignation"]

1. d4 {[%clk 0:03:01.9]} 1... d5 {[%clk 0:02:59.6]} 2. c4 {[%clk 0:03:02.6]}
2... c6 {[%clk 0:03:00.9]} 3. Nc3 {[%clk 0:03:03.1]} 3... Nf6 {[%clk 0:03:02.4]}
4. Nf3 {[%clk 0:03:03.8]} 4... e6 {[%clk 0:03:03.1]} 5. Bg5 {[%clk 0:03:03.6]}
5... Nbd7 {[%clk 0:03:04.1]} 6. e3 {[%clk 0:03:03.3]} 6... Qa5 {[%clk
0:03:04.8]} 7. Nd2 {[%clk 0:03:01.5]} 7... Bb4 {[%clk 0:03:00.6]} 8. Rc1 {[%clk
0:02:58.8]} 8... Ne4 {[%clk 0:02:48.3]} 9. Ndxe4 {[%clk 0:02:49.7]} 9... dxe4
{[%clk 0:02:48.9]} 10. Bf4 {[%clk 0:02:47.1]} 10... Qxa2 {[%clk 0:02:42.6]} 11.
Qd2 {[%clk 0:02:45.3]} 11... Qa5 {[%clk 0:02:39.2]} 12. Be2 {[%clk 0:02:44.4]}
12... O-O {[%clk 0:02:38.5]} 13. O-O {[%clk 0:02:45.1]} 13... e5 {[%clk
0:02:32]} 14. dxe5 {[%clk 0:02:32.6]} 14... Nxe5 {[%clk 0:02:31.7]} 15. Qd4
{[%clk 0:02:33.1]} 15... Ng6 {[%clk 0:02:21.6]} 16. Qxe4 {[%clk 0:02:16.7]}
16... Nxf4 {[%clk 0:02:14.9]} 17. Qxf4 {[%clk 0:02:15.2]} 17... Qf5 {[%clk
0:02:08.2]} 18. Rfd1 {[%clk 0:01:51.1]} 18... Qxf4 {[%clk 0:02:01]} 19. exf4
{[%clk 0:01:52.1]} 19... Be6 {[%clk 0:01:58.9]} 20. g4 {[%clk 0:01:48.5]} 20...
f5 {[%clk 0:01:48.1]} 21. g5 {[%clk 0:01:39]} 21... Rfd8 {[%clk 0:01:47.8]} 22.
Kf1 {[%clk 0:01:22.5]} 22... Bd6 {[%clk 0:01:43.9]} 23. h4 {[%clk 0:01:11.9]}
23... Bxf4 {[%clk 0:01:41.5]} 24. Rxd8+ {[%clk 0:01:13.2]} 24... Rxd8 {[%clk
0:01:41.2]} 25. Ra1 {[%clk 0:01:14.8]} 25... a6 {[%clk 0:01:38]} 26. Na4 {[%clk
0:01:15.4]} 26... Bc7 {[%clk 0:01:20.6]} 27. Nc5 {[%clk 0:01:12.4]} 27... Bc8
{[%clk 0:01:19.8]} 28. Ke1 {[%clk 0:01:06]} 28... Kf7 {[%clk 0:01:11.1]} 29. h5
{[%clk 0:01:01.1]} 29... g6 {[%clk 0:01:06.3]} 30. hxg6+ {[%clk 0:00:57.8]}
30... hxg6 {[%clk 0:01:07.1]} 31. Nd3 {[%clk 0:00:58.4]} 31... Be6 {[%clk
0:00:55.4]} 32. b3 {[%clk 0:00:57.7]} 32... Rh8 {[%clk 0:00:50.7]} 33. Kd2
{[%clk 0:00:56.1]} 33... Rh2 {[%clk 0:00:48.6]} 34. Ke3 {[%clk 0:00:50.8]} 34...
Rg2 {[%clk 0:00:31.5]} 35. f4 {[%clk 0:00:45.1]} 35... Rh2 {[%clk 0:00:18.5]}
36. Rf1 {[%clk 0:00:37.5]} 36... Rh3+ {[%clk 0:00:17.7]} 37. Kd2 {[%clk
0:00:36.7]} 37... Ba5+ {[%clk 0:00:17.9]} 38. Kc2 {[%clk 0:00:37.3]} 38... Rh2
{[%clk 0:00:17.2]} 39. Kd1 {[%clk 0:00:36.8]} 39... Bc3 {[%clk 0:00:17.2]} 40.
Nc5 {[%clk 0:00:32.3]} 40... Bc8 {[%clk 0:00:16.3]} 41. Nd3 {[%clk 0:00:33.2]}
41... Bd4 {[%clk 0:00:17]} 42. Bf3 {[%clk 0:00:25.1]} 42... Be6 {[%clk
0:00:15.8]} 43. Rh1 {[%clk 0:00:23.8]} 43... Rxh1+ {[%clk 0:00:16.4]} 44. Bxh1
{[%clk 0:00:24.3]} 44... Ke7 {[%clk 0:00:15.5]} 45. Ke2 {[%clk 0:00:25.3]} 45...
Kd7 {[%clk 0:00:16.3]} 46. Bf3 {[%clk 0:00:26.6]} 46... Kc7 {[%clk 0:00:16.3]}
47. Ne1 {[%clk 0:00:26.1]} 47... b5 {[%clk 0:00:15.7]} 48. cxb5 {[%clk
0:00:24.3]} 48... cxb5 {[%clk 0:00:15.2]} 49. b4 {[%clk 0:00:23.9]} 49... Bc3
{[%clk 0:00:15.1]} 50. Nd3 {[%clk 0:00:24.6]} 50... Bc4 {[%clk 0:00:16]} 51. Bg2
{[%clk 0:00:21]} 51... Bxb4 {[%clk 0:00:15.2]} 52. Ke3 {[%clk 0:00:22.6]} 52...
Bxd3 {[%clk 0:00:14.7]} 53. Kxd3 {[%clk 0:00:23.6]} 53... Bd6 {[%clk 0:00:15.4]}
54. Bd5 {[%clk 0:00:23.6]} 54... Bxf4 {[%clk 0:00:15.5]} 55. Bf7 {[%clk
0:00:25.2]} 55... Bxg5 {[%clk 0:00:16.5]} 56. Bxg6 {[%clk 0:00:25.9]} 56... f4
{[%clk 0:00:17.6]} 57. Be4 {[%clk 0:00:26]} 57... Kb6 {[%clk 0:00:18.1]} 58. Kc3
{[%clk 0:00:27]} 58... a5 {[%clk 0:00:19]} 59. Kb3 {[%clk 0:00:28.3]} 59... Bf6
{[%clk 0:00:19.7]} 60. Bd5 {[%clk 0:00:28.9]} 60... Kc5 {[%clk 0:00:20.3]} 61.
Bf3 {[%clk 0:00:29.4]} 61... a4+ {[%clk 0:00:20.8]} 62. Ka3 {[%clk 0:00:30.6]}
62... Kc4 {[%clk 0:00:19.2]} 63. Be2+ {[%clk 0:00:31.2]} 63... Kc5 {[%clk
0:00:20]} 64. Bf3 {[%clk 0:00:31.6]} 64... Bc3 {[%clk 0:00:20.3]} 65. Be2 {[%clk
0:00:32.1]} 65... Bb4+ {[%clk 0:00:20.4]} 66. Kb2 {[%clk 0:00:33.7]} 66... Ba5
{[%clk 0:00:19.1]} 67. Ka3 {[%clk 0:00:34.3]} 67... Bd2 {[%clk 0:00:19.9]} 68.
Bf3 {[%clk 0:00:33.3]} 68... Bc1+ {[%clk 0:00:20.4]} 69. Ka2 {[%clk 0:00:33.8]}
69... Kb4 {[%clk 0:00:20.9]} 70. Be2 {[%clk 0:00:34.1]} 70... Be3 {[%clk
0:00:21.6]} 71. Kb1 {[%clk 0:00:33.8]} 71... a3 {[%clk 0:00:21.1]} 72. Ka2
{[%clk 0:00:34.7]} 72... Ka4 {[%clk 0:00:22]} 73. Bd1+ {[%clk 0:00:34.6]} 73...
Kb4 {[%clk 0:00:23.1]} 74. Be2 {[%clk 0:00:36.1]} 74... Bc1 {[%clk 0:00:23.8]}
75. Bd1 {[%clk 0:00:36.3]} 75... Kc5 {[%clk 0:00:24]} 76. Be2 {[%clk 0:00:37]}
76... b4 {[%clk 0:00:22.6]} 77. Kb3 {[%clk 0:00:38.3]} 77... Bd2 {[%clk
0:00:22.7]} 78. Kc2 {[%clk 0:00:36.9]} 78... Bc3 {[%clk 0:00:22.3]} 79. Kb3
{[%clk 0:00:37.3]} 79... Kd4 {[%clk 0:00:22.7]} 80. Kc2 {[%clk 0:00:38.4]} 80...
Ke3 {[%clk 0:00:22.9]} 0-1

[Event "*** Titled Tuesday Blitz"]
[Site "Chess.com"]
[Date "2020.01.07"]
[Round "3"]
[White "vovachesss"]
[Black "SantoBlue"]
[Result "1-0"]
[WhiteElo "2581"]
[BlackElo "2733"]
[TimeControl "180+2"]
[EndTime "13:41:44 PST"]
[Termination "vovachesss won by resignation"]

1. d4 {[%clk 0:03:00.9]} 1... Nf6 {[%clk 0:03:00.7]} 2. c4 {[%clk 0:03:01.1]}
2... e6 {[%clk 0:03:02.2]} 3. Nc3 {[%clk 0:03:02]} 3... Bb4 {[%clk 0:03:03.2]}
4. Qc2 {[%clk 0:02:58.3]} 4... O-O {[%clk 0:03:04]} 5. e3 {[%clk 0:02:58.9]}
5... c5 {[%clk 0:03:03.7]} 6. dxc5 {[%clk 0:02:57.4]} 6... Na6 {[%clk
0:03:03.6]} 7. Nf3 {[%clk 0:02:53.4]} 7... Nxc5 {[%clk 0:03:04.7]} 8. Bd2 {[%clk
0:02:52.1]} 8... d5 {[%clk 0:03:05]} 9. Be2 {[%clk 0:02:46.5]} 9... dxc4 {[%clk
0:02:40.9]} 10. Bxc4 {[%clk 0:02:47.2]} 10... b5 {[%clk 0:02:24]} 11. Bxb5
{[%clk 0:02:34.7]} 11... Bb7 {[%clk 0:02:25.3]} 12. O-O {[%clk 0:02:29]} 12...
Bxf3 {[%clk 0:02:24.4]} 13. gxf3 {[%clk 0:02:30.9]} 13... Nh5 {[%clk 0:01:54.3]}
14. Kh1 {[%clk 0:02:14.3]} 14... Qh4 {[%clk 0:01:47.8]} 15. Rad1 {[%clk
0:02:02.4]} 15... Rad8 {[%clk 0:01:36.6]} 16. Ne2 {[%clk 0:01:51.5]} 16... Bxd2
{[%clk 0:01:31.1]} 17. Rxd2 {[%clk 0:01:53.4]} 17... Qh3 {[%clk 0:01:32.5]} 18.
Ng3 {[%clk 0:01:43.7]} 18... Rxd2 {[%clk 0:01:21.3]} 19. Qxd2 {[%clk 0:01:44.4]}
19... g6 {[%clk 0:01:15.8]} 20. Qe2 {[%clk 0:01:27]} 20... Rb8 {[%clk
0:01:04.7]} 21. Rc1 {[%clk 0:01:23.6]} 21... Nb7 {[%clk 0:00:57.3]} 22. Qd2
{[%clk 0:01:00.2]} 22... Rd8 {[%clk 0:00:54.2]} 23. Qb4 {[%clk 0:00:54.6]} 23...
Nxg3+ {[%clk 0:00:45.8]} 24. fxg3 {[%clk 0:00:55.7]} 24... Nd6 {[%clk
0:00:34.8]} 25. Bf1 {[%clk 0:00:52.7]} 25... Qf5 {[%clk 0:00:34]} 26. Kg2 {[%clk
0:00:51.9]} 26... Qe5 {[%clk 0:00:32.3]} 27. Qc3 {[%clk 0:00:45.4]} 27... Qd5
{[%clk 0:00:23]} 28. Be2 {[%clk 0:00:42.8]} 28... Nf5 {[%clk 0:00:18]} 29. Rd1
{[%clk 0:00:37.5]} 29... Qa8 {[%clk 0:00:19.1]} 30. g4 {[%clk 0:00:25.7]} 30...
Rxd1 {[%clk 0:00:16]} 31. Bxd1 {[%clk 0:00:24.9]} 31... Ne7 {[%clk 0:00:17.9]}
32. Bc2 {[%clk 0:00:20.2]} 32... Nd5 {[%clk 0:00:18.8]} 33. Be4 {[%clk
0:00:17.4]} 33... Nxc3 {[%clk 0:00:14.6]} 34. Bxa8 {[%clk 0:00:18.6]} 34... Nxa2
{[%clk 0:00:16.5]} 35. Kf2 {[%clk 0:00:19.3]} 35... Kf8 {[%clk 0:00:17.6]} 36.
Ke2 {[%clk 0:00:20.7]} 36... Nb4 {[%clk 0:00:19.2]} 37. Kd2 {[%clk 0:00:21.8]}
37... Ke7 {[%clk 0:00:20.8]} 38. Kc3 {[%clk 0:00:23.3]} 38... Na6 {[%clk
0:00:21.5]} 39. Kd4 {[%clk 0:00:21.8]} 39... Kd6 {[%clk 0:00:22.5]} 40. f4
{[%clk 0:00:21.6]} 40... Nc7 {[%clk 0:00:21.6]} 41. Bf3 {[%clk 0:00:17.2]} 41...
f6 {[%clk 0:00:22.9]} 42. h4 {[%clk 0:00:14.8]} 42... h6 {[%clk 0:00:22.3]} 43.
Kc4 {[%clk 0:00:14.7]} 43... g5 {[%clk 0:00:22.8]} 44. fxg5 {[%clk 0:00:11.7]}
44... fxg5 {[%clk 0:00:23.7]} 45. hxg5 {[%clk 0:00:12.2]} 45... hxg5 {[%clk
0:00:24.7]} 46. b4 {[%clk 0:00:12.1]} 46... Ne8 {[%clk 0:00:18.1]} 47. Kb5
{[%clk 0:00:12.6]} 47... Nc7+ {[%clk 0:00:16.9]} 48. Kc4 {[%clk 0:00:12.9]}
48... e5 {[%clk 0:00:16]} 49. Be4 {[%clk 0:00:11.4]} 49... Ne8 {[%clk
0:00:15.3]} 50. Kb5 {[%clk 0:00:11.8]} 50... Nc7+ {[%clk 0:00:14.1]} 51. Kc4
{[%clk 0:00:12.8]} 51... Ne8 {[%clk 0:00:10.6]} 52. Kb5 {[%clk 0:00:13.9]} 52...
Nf6 {[%clk 0:00:12.1]} 53. Bf5 {[%clk 0:00:06.6]} 53... Nd5 {[%clk 0:00:12.1]}
54. e4 {[%clk 0:00:06.3]} 54... Nc7+ {[%clk 0:00:13.3]} 55. Kc4 {[%clk
0:00:07.6]} 55... Kc6 {[%clk 0:00:14.6]} 56. Bc8 {[%clk 0:00:07.7]} 56... Kb6
{[%clk 0:00:15.6]} 57. Bd7 {[%clk 0:00:07.3]} 57... a6 {[%clk 0:00:14.5]} 58.
Ba4 {[%clk 0:00:05.7]} 58... a5 {[%clk 0:00:09.7]} 59. bxa5+ {[%clk 0:00:05]}
59... Kxa5 {[%clk 0:00:11.6]} 60. Bd7 {[%clk 0:00:05.3]} 60... Kb6 {[%clk
0:00:12.8]} 61. Ba4 {[%clk 0:00:06.1]} 61... Ka5 {[%clk 0:00:12.7]} 62. Bc6
{[%clk 0:00:07.6]} 62... Kb6 {[%clk 0:00:10.3]} 63. Bd7 {[%clk 0:00:09.2]} 63...
Na8 {[%clk 0:00:04.7]} 64. Kd5 {[%clk 0:00:10.1]} 64... Kc7 {[%clk 0:00:06.6]}
65. Bb5 {[%clk 0:00:09.6]} 65... Nb6+ {[%clk 0:00:08.5]} 66. Kxe5 {[%clk
0:00:10.9]} 66... Nc8 {[%clk 0:00:08.7]} 67. Kf6 {[%clk 0:00:10.3]} 67... Kd6
{[%clk 0:00:10.1]} 68. e5+ {[%clk 0:00:10.8]} 68... Kd5 {[%clk 0:00:11.7]} 69.
e6 {[%clk 0:00:10]} 69... Nd6 {[%clk 0:00:13.2]} 70. e7 {[%clk 0:00:09.9]} 70...
Ke4 {[%clk 0:00:06.9]} 71. e8=Q+ {[%clk 0:00:11.2]} 1-0

[Event "*** Titled Tuesday Blitz"]
[Site "Chess.com"]
[Date "2020.01.07"]
[Round "3"]
[White "arminmusovic"]
[Black "Sanan_Sjugirov"]
[Result "0-1"]
[WhiteElo "2516"]
[BlackElo "2933"]
[TimeControl "180+2"]
[EndTime "13:41:59 PST"]
[Termination "Sanan_Sjugirov won by resignation"]

1. e4 {[%clk 0:03:01]} 1... e6 {[%clk 0:03:01.2]} 2. d4 {[%clk 0:03:02.1]} 2...
d5 {[%clk 0:03:03]} 3. Nd2 {[%clk 0:03:03.7]} 3... c5 {[%clk 0:03:03.5]} 4. Ngf3
{[%clk 0:03:04.4]} 4... cxd4 {[%clk 0:03:04.2]} 5. Nxd4 {[%clk 0:03:05.4]} 5...
Nc6 {[%clk 0:03:04.3]} 6. Nxc6 {[%clk 0:03:03.5]} 6... bxc6 {[%clk 0:03:06.2]}
7. Bd3 {[%clk 0:03:02.6]} 7... Bd6 {[%clk 0:03:01.9]} 8. Qe2 {[%clk 0:03:03]}
8... Ne7 {[%clk 0:02:46]} 9. O-O {[%clk 0:02:49.7]} 9... Ng6 {[%clk 0:02:45.4]}
10. exd5 {[%clk 0:02:41.2]} 10... cxd5 {[%clk 0:02:44.2]} 11. Bb5+ {[%clk
0:02:35.9]} 11... Bd7 {[%clk 0:02:44.9]} 12. Nf3 {[%clk 0:02:35.3]} 12... O-O
{[%clk 0:02:43.8]} 13. Bg5 {[%clk 0:02:35.1]} 13... Bxb5 {[%clk 0:02:36.4]} 14.
Qxb5 {[%clk 0:02:35.8]} 14... Qc7 {[%clk 0:02:38.1]} 15. Rac1 {[%clk 0:02:31.5]}
15... Rab8 {[%clk 0:02:37.3]} 16. Qd3 {[%clk 0:02:24.4]} 16... Ne5 {[%clk
0:02:24]} 17. Nxe5 {[%clk 0:02:13.3]} 17... Bxe5 {[%clk 0:02:25.9]} 18. c4
{[%clk 0:02:12.1]} 18... Bxb2 {[%clk 0:02:01.9]} 19. Rc2 {[%clk 0:01:55.7]}
19... Rfc8 {[%clk 0:02:01.9]} 20. c5 {[%clk 0:01:47.3]} 20... Be5 {[%clk
0:01:52.3]} 21. h4 {[%clk 0:01:37.9]} 21... Rb4 {[%clk 0:01:43.1]} 22. Re1
{[%clk 0:01:22.9]} 22... h6 {[%clk 0:01:36.1]} 23. Be3 {[%clk 0:01:11.7]} 23...
Rxh4 {[%clk 0:01:33.4]} 24. Rb1 {[%clk 0:01:12.6]} 24... Bh2+ {[%clk 0:01:29.7]}
25. Kf1 {[%clk 0:01:13.5]} 25... Bf4 {[%clk 0:01:31.5]} 26. Bxf4 {[%clk
0:01:05.3]} 26... Rxf4 {[%clk 0:01:25.1]} 27. c6 {[%clk 0:00:53.9]} 27... Rc4
{[%clk 0:01:08.6]} 28. Rxc4 {[%clk 0:00:54.7]} 28... dxc4 {[%clk 0:01:10.5]} 29.
Qxc4 {[%clk 0:00:56.6]} 29... Qxc6 {[%clk 0:01:11.8]} 30. Qxc6 {[%clk
0:00:48.7]} 30... Rxc6 {[%clk 0:01:13.7]} 31. Rb8+ {[%clk 0:00:45.9]} 31... Kh7
{[%clk 0:01:14.8]} 32. Rb7 {[%clk 0:00:47.5]} 32... Kg6 {[%clk 0:01:01.5]} 33.
Rxa7 {[%clk 0:00:46.6]} 33... Rc2 {[%clk 0:01:02.4]} 34. Ra5 {[%clk 0:00:39.9]}
34... Kf6 {[%clk 0:00:56.4]} 35. g3 {[%clk 0:00:35.7]} 35... e5 {[%clk
0:00:50.5]} 36. Ra7 {[%clk 0:00:33.2]} 36... h5 {[%clk 0:00:48.8]} 37. Kg1
{[%clk 0:00:31.5]} 37... g6 {[%clk 0:00:48.7]} 38. Kf1 {[%clk 0:00:30.6]} 38...
Ke6 {[%clk 0:00:49.6]} 39. Kg1 {[%clk 0:00:28.1]} 39... f6 {[%clk 0:00:50.5]}
40. Ra6+ {[%clk 0:00:25.1]} 40... Kf5 {[%clk 0:00:51.6]} 41. Kf1 {[%clk
0:00:25.7]} 41... g5 {[%clk 0:00:46]} 42. Kg2 {[%clk 0:00:24.1]} 42... e4 {[%clk
0:00:42.9]} 43. Kf1 {[%clk 0:00:21.5]} 43... Rb2 {[%clk 0:00:42]} 44. Kg1 {[%clk
0:00:21.3]} 44... e3 {[%clk 0:00:28.1]} 45. fxe3 {[%clk 0:00:20.8]} 45... Re2
{[%clk 0:00:29]} 46. Kf1 {[%clk 0:00:20.3]} 46... Rxe3 {[%clk 0:00:29.4]} 47.
Kf2 {[%clk 0:00:21.8]} 47... Rc3 {[%clk 0:00:30.4]} 48. Ra4 {[%clk 0:00:22.9]}
48... Rc2+ {[%clk 0:00:29.6]} 49. Kf1 {[%clk 0:00:22]} 49... Rb2 {[%clk
0:00:21.1]} 50. Kg1 {[%clk 0:00:23.1]} 50... Re2 {[%clk 0:00:21.7]} 51. Kf1
{[%clk 0:00:21.7]} 51... Rc2 {[%clk 0:00:16.3]} 52. Kg1 {[%clk 0:00:22]} 52...
Ke5 {[%clk 0:00:08.4]} 53. Kf1 {[%clk 0:00:22.4]} 53... f5 {[%clk 0:00:08.3]}
54. Kg1 {[%clk 0:00:21.4]} 54... Rb2 {[%clk 0:00:06.8]} 55. Kf1 {[%clk
0:00:22.4]} 55... Rd2 {[%clk 0:00:08.2]} 56. Kg1 {[%clk 0:00:22.7]} 56... Kf6
{[%clk 0:00:05.7]} 57. Kf1 {[%clk 0:00:23.4]} 57... g4 {[%clk 0:00:06.3]} 58.
Ra6+ {[%clk 0:00:23.1]} 58... Kg5 {[%clk 0:00:07.5]} 59. Ra5 {[%clk 0:00:24.6]}
59... Rd3 {[%clk 0:00:06.5]} 60. Kf2 {[%clk 0:00:25.6]} 60... Rd2+ {[%clk
0:00:06.9]} 61. Kf1 {[%clk 0:00:26.6]} 61... Rc2 {[%clk 0:00:08.4]} 62. Kg1
{[%clk 0:00:27.4]} 62... h4 {[%clk 0:00:08.9]} 63. gxh4+ {[%clk 0:00:28.1]}
63... Kf4 {[%clk 0:00:10.5]} 64. Kf1 {[%clk 0:00:26.5]} 64... g3 {[%clk
0:00:10.4]} 65. Ra4+ {[%clk 0:00:27.9]} 65... Kf3 {[%clk 0:00:11.1]} 66. Ra3+
{[%clk 0:00:29.1]} 66... Kg4 {[%clk 0:00:12.5]} 67. h5 {[%clk 0:00:28]} 67... f4
{[%clk 0:00:13.7]} 68. Ra4 {[%clk 0:00:26.3]} 68... Rc1+ {[%clk 0:00:12.7]} 69.
Ke2 {[%clk 0:00:26.6]} 69... Rc2+ {[%clk 0:00:13.8]} 70. Kf1 {[%clk 0:00:27.8]}
70... g2+ {[%clk 0:00:12.4]} 71. Kg1 {[%clk 0:00:27.2]} 71... Kg3 {[%clk
0:00:13.7]} 72. Rxf4 {[%clk 0:00:22]} 72... Rc1+ {[%clk 0:00:13.4]} 0-1

[Event "*** Titled Tuesday Blitz"]
[Site "Chess.com"]
[Date "2020.01.07"]
[Round "3"]
[White "Benjoneliere44"]
[Black "Irishchessman16"]
[Result "1-0"]
[WhiteElo "2546"]
[BlackElo "2203"]
[TimeControl "180+2"]
[EndTime "13:42:00 PST"]
[Termination "Benjoneliere44 won by resignation"]

1. e4 {[%clk 0:03:00.7]} 1... c5 {[%clk 0:02:59.4]} 2. Nc3 {[%clk 0:03:01.4]}
2... Nc6 {[%clk 0:02:59.9]} 3. g3 {[%clk 0:03:02.8]} 3... g6 {[%clk 0:02:58.8]}
4. Bg2 {[%clk 0:03:04.7]} 4... Bg7 {[%clk 0:03:00.3]} 5. d3 {[%clk 0:03:06.4]}
5... e5 {[%clk 0:02:58.9]} 6. f4 {[%clk 0:03:06.6]} 6... d6 {[%clk 0:02:54.2]}
7. Nf3 {[%clk 0:03:07.9]} 7... Bg4 {[%clk 0:02:52.5]} 8. h3 {[%clk 0:03:05.8]}
8... Bxf3 {[%clk 0:02:51.6]} 9. Qxf3 {[%clk 0:03:07.7]} 9... Nd4 {[%clk
0:02:51.6]} 10. Qf2 {[%clk 0:03:09]} 10... Nf6 {[%clk 0:02:50.5]} 11. O-O {[%clk
0:03:09.3]} 11... Qd7 {[%clk 0:02:45.7]} 12. fxe5 {[%clk 0:03:07.9]} 12... dxe5
{[%clk 0:02:46.1]} 13. Bg5 {[%clk 0:03:09.2]} 13... Ng8 {[%clk 0:02:47]} 14. Nd5
{[%clk 0:03:09.8]} 14... h6 {[%clk 0:02:47.9]} 15. Bf6 {[%clk 0:03:01]} 15...
Nxf6 {[%clk 0:02:48.3]} 16. Nxf6+ {[%clk 0:03:01.8]} 16... Bxf6 {[%clk
0:02:50.2]} 17. Qxf6 {[%clk 0:03:02.7]} 17... O-O {[%clk 0:02:51.9]} 18. Rf2
{[%clk 0:02:40.5]} 18... Qe6 {[%clk 0:02:51.3]} 19. Qh4 {[%clk 0:02:29.7]} 19...
Kg7 {[%clk 0:02:51.6]} 20. c3 {[%clk 0:02:28.4]} 20... Nc6 {[%clk 0:02:51.1]}
21. Raf1 {[%clk 0:02:29.7]} 21... Rad8 {[%clk 0:02:37.6]} 22. Rf6 {[%clk
0:02:28.3]} 22... Qxa2 {[%clk 0:02:37.7]} 23. R6f2 {[%clk 0:02:09.6]} 23... Rxd3
{[%clk 0:02:33.6]} 24. Qf6+ {[%clk 0:02:09.9]} 24... Kg8 {[%clk 0:02:32.4]} 25.
Bf3 {[%clk 0:01:59.3]} 25... Qe6 {[%clk 0:02:03.7]} 26. Qxe6 {[%clk 0:01:49.5]}
26... fxe6 {[%clk 0:02:03.1]} 27. Bg4 {[%clk 0:01:51.4]} 27... Rxf2 {[%clk
0:02:02.3]} 28. Rxf2 {[%clk 0:01:53.3]} 28... Kg7 {[%clk 0:02:00]} 29. Bxe6
{[%clk 0:01:52.3]} 29... Nd8 {[%clk 0:01:59.7]} 30. Bd5 {[%clk 0:01:49.4]} 30...
b5 {[%clk 0:02:00.8]} 31. Kg2 {[%clk 0:01:46.5]} 31... a5 {[%clk 0:02:00.8]} 32.
h4 {[%clk 0:01:44.6]} 32... h5 {[%clk 0:02:01]} 33. Kh3 {[%clk 0:01:43]} 33...
Rd1 {[%clk 0:01:38.2]} 34. b3 {[%clk 0:01:39.2]} 34... Rc1 {[%clk 0:01:27.6]}
35. Ra2 {[%clk 0:01:38.4]} 35... Rxc3 {[%clk 0:01:24.8]} 36. Rxa5 {[%clk
0:01:38]} 36... c4 {[%clk 0:01:22.9]} 37. bxc4 {[%clk 0:01:37.6]} 37... bxc4
{[%clk 0:01:23.6]} 38. Rc5 {[%clk 0:01:25.1]} 38... Kf6 {[%clk 0:01:22.3]} 39.
Rc8 {[%clk 0:01:22.6]} 39... Ke7 {[%clk 0:01:21.8]} 40. Rc7+ {[%clk 0:01:15.5]}
40... Kf8 {[%clk 0:01:01.7]} 41. Rd7 {[%clk 0:01:06.6]} 41... Ke8 {[%clk
0:01:00.8]} 42. Rg7 {[%clk 0:01:06.5]} 42... Rc1 {[%clk 0:00:53.8]} 43. Rxg6
{[%clk 0:01:07.5]} 43... c3 {[%clk 0:00:55.2]} 44. Bb3 {[%clk 0:00:55.8]} 44...
Rb1 {[%clk 0:00:53.2]} 45. Ba4+ {[%clk 0:00:55.6]} 45... Ke7 {[%clk 0:00:53.5]}
46. Rg5 {[%clk 0:00:56.3]} 46... Nf7 {[%clk 0:00:49]} 47. Rxh5 {[%clk
0:00:56.9]} 47... Rb4 {[%clk 0:00:46.9]} 48. Bd1 {[%clk 0:00:51.8]} 48... Rb2
{[%clk 0:00:40.5]} 49. g4 {[%clk 0:00:41.3]} 49... c2 {[%clk 0:00:37.7]} 50.
Bxc2 {[%clk 0:00:42.5]} 50... Rxc2 {[%clk 0:00:39.6]} 51. g5 {[%clk 0:00:44.4]}
51... Nd6 {[%clk 0:00:31.2]} 52. Rh7+ {[%clk 0:00:41.5]} 52... Ke6 {[%clk
0:00:29.6]} 53. Rh6+ {[%clk 0:00:42.4]} 53... Ke7 {[%clk 0:00:29.8]} 54. Rh7+
{[%clk 0:00:37]} 54... Kf8 {[%clk 0:00:30.7]} 55. Rd7 {[%clk 0:00:33.2]} 55...
Nxe4 {[%clk 0:00:30]} 56. Rd5 {[%clk 0:00:34.3]} 56... Rc5 {[%clk 0:00:29.6]}
57. Rd7 {[%clk 0:00:28.1]} 57... Rc4 {[%clk 0:00:14.4]} 58. Ra7 {[%clk
0:00:22.3]} 58... Nc5 {[%clk 0:00:12.2]} 59. h5 {[%clk 0:00:20.3]} 59... Ne6
{[%clk 0:00:13.4]} 60. g6 {[%clk 0:00:21]} 60... Ng5+ {[%clk 0:00:14.4]} 61. Kg2
{[%clk 0:00:21]} 61... Rh4 {[%clk 0:00:11.7]} 62. Ra8+ {[%clk 0:00:19.9]} 62...
Kg7 {[%clk 0:00:12.3]} 63. Ra7+ {[%clk 0:00:21.8]} 63... Kf6 {[%clk 0:00:13.3]}
64. g7 {[%clk 0:00:22.8]} 64... Rg4+ {[%clk 0:00:12.5]} 65. Kf1 {[%clk
0:00:23.3]} 65... Nh7 {[%clk 0:00:12.5]} 66. h6 {[%clk 0:00:24.3]} 66... e4
{[%clk 0:00:09.3]} 67. Ra8 {[%clk 0:00:25.2]} 67... Kf7 {[%clk 0:00:09.1]} 68.
Rh8 {[%clk 0:00:26.4]} 68... Nf6 {[%clk 0:00:09.4]} 69. Rf8+ {[%clk 0:00:27.5]}
69... Ke7 {[%clk 0:00:10.5]} 70. Kf2 {[%clk 0:00:24.9]} 70... e3+ {[%clk
0:00:10.9]} 71. Kxe3 {[%clk 0:00:25.5]} 71... Nd5+ {[%clk 0:00:09.2]} 72. Kf3
{[%clk 0:00:25.9]} 72... Rg6 {[%clk 0:00:04.2]} 73. g8=Q {[%clk 0:00:16.5]}
73... Rxg8 {[%clk 0:00:04.8]} 74. Rxg8 {[%clk 0:00:18.4]} 74... Kf7 {[%clk
0:00:05.4]} 75. h7 {[%clk 0:00:19.3]} 1-0